bitfinex/quotes_SOLUSD_20251024
["timestamp","ask_amount","ask_price","bid_price","bid_amount"]
[1761344967744,36.08,194.07,194.03,2.55034528]
[1761344967939,0.7,194.06,194.03,2.55034528]
[1761344968446,0.7,194.06,194.03,3.27034528]
[1761344969258,0.7,194.06,194.04,2.55034528]
[1761344969858,0.7,194.06,194.03,8.42396083]
[1761344970949,0.7,194.09,194.05,2.55034528]
[1761344971151,36.06,194.08,194.06,2.55034528]
[1761344971959,36.76,194.08,194.06,2.55034528]
[1761344972157,36.76,194.08,194.05,3.27034528]
[1761344972463,36.76,194.08,194.05,2.55034528]
[1761344972645,36.76,194.08,194.05,5.153311]
[1761344976958,0.2,194.11,194.06,11.52647521]
[1761344977157,36.04,194.1,194.07,0.65]
[1761344977460,36.04,194.1,194.09,2.55034528]
[1761344978167,36.04,194.1,194.09,7.70259423]
[1761344979476,36.18,194.1,194.09,8.35259423]
[1761344980872,36.18,194.1,194.09,5.80224895]
[1761344981073,36.18,194.1,194.09,8.35259423]
[1761344982357,0.2,194.11,194.09,8.35259423]
[1761344982556,36.18,194.1,194.09,8.35259423]
[1761344985175,36.14,194.1,194.09,8.35259423]
[1761344985376,36.14,194.1,194.09,5.15224895]
[1761344985761,36.8,194.1,194.07,5.15261218]
[1761344985961,0.66,194.09,194.07,5.15261218]
[1761344986169,0.66,194.09,194.07,7.70295746]
[1761344987062,36.14,194.08,194.07,7.70295746]
[1761344989080,36.14,194.08,194.06,7.70339072]
[1761344990865,0.71,194.07,194.01,4.96119716]
[1761344991073,0.71,194.07,194.02,7.70435958]
[1761344991364,0.71,194.07,194.02,8.35435958]
[1761344992080,0.71,194.07,194.02,7.70435958]
[1761344992278,0.71,194.07,194.03,5.80363431]
[1761344993383,36.14,194.06,194.03,5.80363431]
[1761344994385,36.85,194.06,194.03,5.80363431]
[1761344994583,0.71,194.05,194.01,0.65]
[1761344994881,0.71,194.05,194.01,3.20034528]
[1761344995073,0.71,194.05,194.02,0.65]
[1761344995990,0.71,194.05,194.03,5.15384218]
[1761344996768,36.12,194.04,194.03,5.15384218]
[1761344998366,3.24034528,194.07,194.02,5.15410782]
[1761344998568,36.1,194.06,194.03,0.69]
[1761344998767,36.79,194.06,194.03,0.69]
[1761344999080,36.79,194.06,194.02,20.58972265]
[1761344999583,36.79,194.06,194.03,0.69]
[1761345000489,36.1,194.05,194.04,5.15357658]
[1761345002085,0.69,194.08,194.04,5.15357658]
[1761345002278,36.08,194.07,194.04,5.84357658]
[1761345002486,36.77,194.07,194.04,5.84357658]
[1761345003211,0.69,194.07,194.04,5.84357658]
[1761345003384,36.08,194.06,194.05,0.69]
[1761345003693,36.08,194.06,194.04,5.15357658]
[1761345004305,36.77,194.06,194.04,5.15357658]
[1761345004972,36.08,194.06,194.04,5.15357658]
[1761345005671,36.08,194.06,194.04,5.84357658]
[1761345005990,36.08,194.05,194.04,5.84357658]
[1761345006699,36.08,194.05,194.04,5.15357658]
[1761345011891,13.08526955,194.11,194.04,7.70392186]
[1761345012092,36.73,194.1,194.08,2.55034528]
[1761345012298,36.73,194.1,194.07,2.55034528]
[1761345012678,0.69,194.1,194.07,2.55034528]
[1761345012879,36.06,194.09,194.07,3.24034528]
[1761345013280,36.06,194.09,194.07,0.69]
[1761345013478,0.69,194.1,194.07,0.69]
[1761345013783,36.04,194.09,194.07,0.69]
[1761345013984,0.69,194.1,194.06,5.84304544]
[1761345014184,36.73,194.09,194.06,5.84304544]
[1761345014584,0.69,194.09,194.06,5.84304544]
[1761345014786,36.04,194.08,194.06,5.84304544]
[1761345015191,0.69,194.07,194.03,3.24034528]
[1761345015503,36.04,194.06,194.03,3.24034528]
[1761345015693,36.04,194.06,194.04,0.69]
[1761345016303,36.04,194.06,194.02,0.69]
[1761345016483,36.73,194.06,194.02,3.24034528]
[1761345016684,36.73,194.06,194.03,0.69]
[1761345018397,36.73,194.06,194.04,5.15357658]
[1761345018601,0.69,194.05,194.03,5.15384218]
[1761345018780,36.04,194.06,194.03,5.15384218]
[1761345019098,36.73,194.06,194.03,5.15384218]
[1761345019609,36.73,194.06,194.03,5.84384218]
[1761345020896,36.73,194.06,194.03,6.78641465]
[1761345021103,0.67,194.05,194.03,6.78641465]
[1761345021279,36.02,194.04,194.03,6.78641465]
[1761345021698,0.67,194.05,194.03,6.78641465]
[1761345022005,36.02,194.04,194.03,6.78641465]
[1761345025600,36.02,194.04,194.01,12.88529159]
[1761345025601,36.69,194.04,194.01,5.15437348]
[1761345025803,0.67,194.03,193.98,9.46632559]
[1761345026010,0.67,194.03,193.98,5.15512843]
[1761345027019,0.67,194.03,193.98,6.7877009]
[1761345027610,0.67,194.03,193.99,1.63257247]
[1761345028107,0.67,194.03,193.99,6.7872216]
[1761345029203,36.0,194.02,193.99,6.7872216]
[1761345029597,0.67,194.01,193.99,6.7872216]
[1761345030906,0.67,194.01,193.98,6.78748642]
[1761345032701,35.98,194.0,193.98,6.78748642]
[1761345034317,0.67,194.01,193.98,6.78748642]
[1761345034519,35.98,194.0,193.98,6.78748642]
[1761345035014,35.98,194.0,193.98,7.49748642]
[1761345035819,35.98,194.0,193.98,5.86491395]
[1761345035998,35.98,194.0,193.98,7.49748642]
[1761345036609,35.98,194.0,193.98,6.78748642]
[1761345038421,35.98,194.0,193.98,7.49748642]
[1761345040127,117.6818733,194.07,193.99,2.34257247]
[1761345040128,0.67,194.03,193.99,2.34257247]
[1761345040313,35.96,194.02,194.0,1.63257247]
[1761345040705,36.63,194.02,194.0,1.63257247]
[1761345041902,0.67,194.01,193.99,5.15478354]
[1761345042631,36.63,194.02,193.99,6.78735601]
[1761345043214,0.67,194.02,193.99,6.78735601]
[1761345043422,35.96,194.01,193.99,7.49735601]
[1761345043797,35.96,194.0,193.99,7.49735601]
[1761345044719,35.96,194.0,193.99,6.78735601]
[1761345045308,35.94,194.0,193.99,6.78735601]
[1761345045924,0.67,194.01,193.99,6.78735601]
[1761345046325,35.94,194.0,193.99,6.78735601]
[1761345047325,36.61,194.0,193.99,6.78735601]
[1761345049008,35.94,194.0,193.99,6.78735601]
[1761345051530,35.94,194.0,193.99,5.15478354]
[1761345052328,35.92,194.0,193.99,5.15478354]
[1761345053132,35.92,194.0,193.99,6.78735601]
[1761345054933,102.2,194.07,193.99,7.47735601]
[1761345055238,0.72,194.05,194.01,1.63257247]
[1761345056526,35.92,194.04,194.01,1.63257247]
[1761345057039,0.72,194.03,194.01,1.63257247]
[1761345057214,35.92,194.02,194.01,1.63257247]
[1761345066735,35.92,194.02,194.01,6.78694797]
[1761345068041,35.88,194.02,194.01,6.78694797]
[1761345068935,0.72,194.03,194.01,6.78694797]
[1761345069135,35.88,194.02,194.01,6.78694797]
[1761345070750,35.88,194.02,194.01,11.94132145]
[1761345071242,0.72,194.03,194.01,11.94132145]
[1761345071448,35.86,194.02,194.01,10.30874898]
[1761345071653,35.86,194.02,194.01,5.1543755]
[1761345071948,36.58,194.02,194.01,5.1543755]
[1761345072727,35.86,194.02,194.01,10.30874898]
[1761345073050,35.86,194.02,194.01,11.94132145]
[1761345074349,0.72,194.04,194.01,12.62132145]
[1761345074647,35.86,194.03,194.02,1.63257247]
[1761345075032,36.58,194.03,194.02,1.63257247]
[1761345076254,36.58,194.03,194.01,11.94132145]
[1761345076456,36.58,194.03,194.01,10.30874898]
[1761345076755,36.58,194.03,194.01,5.1543755]
[1761345078356,36.58,194.03,194.01,10.30869811]
[1761345080941,0.66,194.02,194.01,10.30869811]
[1761345081135,0.66,194.02,193.98,5.1551428]
[1761345081449,0.66,194.02,193.98,15.46384091]
[1761345081756,0.66,194.02,193.98,17.09641338]
[1761345082531,0.66,194.02,193.99,1.63257247]
[1761345082730,35.84,194.01,194.0,2.55206008]
[1761345083139,35.84,194.01,194.0,7.70669925]
[1761345083546,35.84,194.01,194.0,5.15463917]
[1761345084257,35.84,194.01,194.0,8.37669925]
[1761345085034,35.84,194.01,194.0,23.85697479]
[1761345086540,35.82,194.01,194.0,23.85697479]
[1761345090366,35.82,194.01,194.0,21.30491471]
[1761345092749,102.2,194.07,194.0,34.19151264]
[1761345092954,0.66,194.07,194.03,2.55206008]
[1761345093153,35.82,194.06,194.03,3.22206008]
[1761345093460,35.82,194.06,194.03,18.69993961]
[1761345093654,35.82,194.06,194.04,0.67]
[1761345093846,35.82,194.06,194.04,3.22206008]
[1761345094163,35.82,194.06,194.04,8.37539573]
[1761345094367,35.82,194.06,194.04,7.70539573]
[1761345094546,36.48,194.06,194.04,7.70539573]
[1761345095475,35.82,194.06,194.04,8.37539573]
[1761345095764,35.82,194.06,194.04,5.82333565]
[1761345096464,35.82,194.06,194.04,5.15333565]
[1761345096764,36.48,194.06,194.04,5.15333565]
[1761345097749,35.8,194.05,194.04,5.15333565]
[1761345098961,0.66,194.08,194.04,5.82333565]
[1761345099273,35.8,194.07,194.04,8.37539573]
[1761345099873,36.46,194.07,194.04,8.37539573]
[1761345101361,36.46,194.07,194.04,23.85327526]
[1761345101968,0.66,194.09,194.06,2.55206008]
[1761345102176,35.8,194.08,194.05,3.22206008]
[1761345102355,35.8,194.08,194.06,15.47628259]
[1761345102760,36.46,194.08,194.06,15.47628259]
[1761345103258,36.46,194.08,194.06,20.62910694]
[1761345103466,36.46,194.08,194.06,5.15282435]
[1761345103669,36.46,194.08,194.06,20.62910694]
[1761345104471,0.66,194.08,194.06,20.62910694]
[1761345104673,35.8,194.07,194.06,20.62910694]
[1761345105169,35.8,194.07,194.06,23.18116702]
[1761345108274,0.66,194.08,194.06,23.18116702]
[1761345108474,35.78,194.07,194.06,23.18116702]
[1761345109880,0.66,194.08,194.06,23.18116702]
[1761345110176,35.78,194.07,194.06,23.18116702]
[1761345110959,0.2,194.11,194.06,36.78378064]
[1761345111253,35.78,194.1,194.09,2.55206008]
[1761345111661,0.2,194.11,194.09,2.55206008]
[1761345112066,35.78,194.1,194.09,7.70430903]
[1761345112476,35.78,194.1,194.09,8.42430903]
[1761345112675,35.78,194.1,194.09,23.89739874]
[1761345114659,0.2,194.11,194.09,23.89739874]
[1761345114863,0.2,194.11,194.1,3.27206008]
[1761345115064,35.98,194.11,194.1,3.27206008]
[1761345115478,35.98,194.11,194.1,5.33481953]
[1761345115984,0.2,194.11,194.1,16.21129474]
[1761345116678,0.2,194.11,194.1,21.36327825]
[1761345118577,35.98,194.11,194.1,5.15198351]
[1761345118772,36.65,194.11,194.1,5.15198351]
[1761345124577,35.98,194.11,194.1,5.15198351]
[1761345125185,0.2,194.11,194.1,5.15198351]
[1761345125398,35.96,194.11,194.1,5.15198351]
[1761345125587,0.2,194.11,194.1,8.37404359]
[1761345125767,0.2,194.11,194.1,23.84394174]
[1761345126387,0.2,194.11,194.1,8.37404359]
[1761345138405,0.2,194.11,194.1,7.70404359]
[1761345139286,0.2,194.11,194.1,8.37404359]
[1761345141520,0.2,194.11,194.1,16.07596926]
[1761345142785,0.2,194.11,194.1,15.15514019]
[1761345144501,0.2,194.11,194.1,13.52390918]
[1761345144713,0.2,194.11,194.1,7.45321452]
[1761345144908,0.2,194.11,194.1,5.82198351]
[1761345145111,0.2,194.11,194.1,7.45321452]
[1761345145525,0.2,194.11,194.1,9.5158676]
[1761345148809,0.2,194.11,194.1,7.88463659]
[1761345149010,0.2,194.11,194.1,9.5158676]
[1761345158948,0.2,194.11,194.1,8.8458676]
[1761345160340,0.2,194.11,194.1,9.5058676]
[1761345162544,0.2,194.11,194.1,8.8458676]
[1761345163456,0.2,194.11,194.1,9.5058676]
[1761345164052,0.88,194.13,194.12,33.75647521]
[1761345164053,1e-08,194.13,194.12,33.75647521]
[1761345164256,1e-08,194.13,194.12,39.70129567]
[1761345164550,1e-08,194.13,194.12,36.04770622]
[1761345164746,1e-08,194.13,194.12,42.42341707]
[1761345165144,1e-08,194.13,194.12,41.94324852]
[1761345165343,1e-08,194.13,194.12,46.25683797]
[1761345166151,1e-08,194.13,194.12,51.40829067]
[1761345168749,1e-08,194.13,194.12,47.09470122]
[1761345170048,1e-08,194.13,194.12,109.09470122]
[1761345173765,1e-08,194.13,194.12,47.09470122]
[1761345182258,0.70000001,194.13,194.12,15.3506244]
[1761345182488,0.70000001,194.13,194.12,8.9848736]
[1761345182664,0.70000001,194.13,194.12,31.8648736]
[1761345182984,0.70000001,194.13,194.12,33.49610461]
[1761345193169,1e-08,194.13,194.12,33.49610461]
[1761345193381,1e-08,194.13,194.12,38.44973401]
[1761345195288,1e-08,194.13,194.12,49.32620922]
[1761345195494,1e-08,194.13,194.12,45.02257982]
[1761345196676,1e-08,194.13,194.12,3.8334209]
[1761345196677,0.70000001,194.13,194.12,3.8334209]
[1761345197290,0.70000001,194.13,194.11,5.15168163]
[1761345197490,5.85168164,194.13,194.11,5.15168163]
[1761345197689,5.15168164,194.13,194.11,5.15168163]
[1761345197884,0.7,194.12,194.11,5.15168163]
[1761345198803,0.7,194.12,194.1,5.15194219]
[1761345199172,0.7,194.12,194.08,6.78374543]
[1761345201095,0.7,194.12,194.08,5.15251442]
[1761345201795,2.33123101,194.12,194.08,5.15251442]
[1761345202003,1.63123101,194.1,194.08,5.15251442]
[1761345202295,1.63123101,194.09,194.08,5.15251442]
[1761345202784,2.35123101,194.09,194.08,5.15251442]
[1761345203095,0.72,194.09,194.08,5.15251442]
[1761345203997,0.72,194.09,194.07,5.15277992]
[1761345204302,0.72,194.09,194.07,28.03277992]
[1761345206203,0.72,194.09,194.08,7.70270699]
[1761345210803,11.93415377,194.12,194.08,7.70270699]
[1761345211001,36.48,194.12,194.11,2.55019257]
[1761345211206,35.76,194.12,194.11,2.55019257]
[1761345212013,36.48,194.12,194.11,2.55019257]
[1761345212603,0.72,194.12,194.11,2.55019257]
[1761345212808,36.48,194.12,194.11,2.55019257]
[1761345215314,36.48,194.12,194.1,2.55019257]
[1761345215533,0.72,194.11,194.1,2.55019257]
[1761345215820,0.72,194.11,194.09,2.55019257]
[1761345217805,0.72,194.11,194.09,7.70237057]
[1761345218295,0.72,194.11,194.09,5.152178]
[1761345219614,0.72,194.11,194.09,7.70237057]
[1761345220818,1e-08,194.13,194.1,3.22019257]
[1761345221012,35.74,194.12,194.11,2.55019257]
[1761345221400,0.72000001,194.13,194.11,3.22019257]
[1761345221401,1e-08,194.13,194.11,3.22019257]
[1761345221600,35.74000001,194.13,194.12,2.55019257]
[1761345222196,36.46000001,194.13,194.12,2.55019257]
[1761345222821,36.46000001,194.13,194.12,7.70164527]
[1761345225020,36.46000001,194.13,194.11,7.70191066]
[1761345226626,35.74000001,194.13,194.11,7.70191066]
[1761345227300,35.74000001,194.13,194.11,8.37191066]
[1761345228004,35.74,194.12,194.11,8.37191066]
[1761345230200,1e-08,194.13,194.11,8.37191066]
[1761345230406,35.74000001,194.13,194.11,8.37191066]
[1761345232328,35.74000001,194.13,194.11,5.82171809]
[1761345232627,35.74000001,194.13,194.11,8.37191066]
[1761345233126,35.74000001,194.13,194.11,7.70191066]
[1761345233331,36.41000001,194.13,194.11,7.70191066]
[1761345233826,35.74000001,194.13,194.11,7.70191066]
[1761345234007,35.74000001,194.13,194.11,8.41191066]
[1761345234411,1e-08,194.13,194.11,8.41191066]
[1761345234614,35.74000001,194.13,194.11,8.41191066]
[1761345236532,36.41000001,194.13,194.09,18.74287134]
[1761345236711,36.41000001,194.13,194.11,2.55019257]
[1761345237733,35.74000001,194.13,194.12,5.1514527]
[1761345238105,36.44000001,194.13,194.12,5.1514527]
[1761345241635,35.74000001,194.13,194.12,5.1514527]
[1761345242329,1e-08,194.13,194.12,5.1514527]
[1761345242530,1e-08,194.13,194.12,8.36164527]
[1761345242941,1e-08,194.13,194.12,23.54606632]
[1761345243112,1e-08,194.13,194.12,19.23812048]
[1761345243813,1e-08,194.13,194.12,23.55409922]
[1761345246229,1e-08,194.13,194.12,5.1514527]
[1761345246437,1e-08,194.13,194.12,7.70164527]
[1761345247017,1e-08,194.13,194.12,8.36164527]
[1761345248338,1e-08,194.13,194.12,5.1514527]
[1761345248648,0.70000001,194.13,194.12,5.1514527]
[1761345249629,35.74000001,194.13,194.11,7.70191066]
[1761345249830,35.74000001,194.13,194.11,8.36191066]
[1761345250934,36.44000001,194.13,194.11,7.70191066]
[1761345252535,36.44000001,194.13,194.09,4.31597874]
[1761345252742,36.44000001,194.13,194.1,44.12213486]
[1761345253051,36.44000001,194.13,194.11,2.55019257]
[1761345253915,36.44000001,194.13,194.12,5.1514527]
[1761345255436,36.44000001,194.13,194.12,2.55019257]
[1761345255642,35.74000001,194.13,194.12,2.55019257]
[1761345255845,35.74000001,194.13,194.12,3.21019257]
[1761345256136,1e-08,194.13,194.12,2.55019257]
[1761345257522,1e-08,194.13,194.12,7.70164527]
[1761345259143,1e-08,194.13,194.12,8.36164527]
[1761345259936,0.66,194.26,194.16,33.75647521]
[1761345260138,0.66,194.26,194.24,2.55019257]
[1761345260323,36.42,194.26,194.24,2.55019257]
[1761345260523,36.42,194.26,194.2,2.55019257]
[1761345260839,0.66,194.25,194.21,3.83189685]
[1761345261030,0.66,194.25,194.22,3.83189685]
[1761345261225,0.66,194.25,194.19,2.55019257]
[1761345261424,0.66,194.25,194.2,3.83071668]
[1761345261624,35.76,194.24,194.21,3.83071668]
[1761345261842,0.66,194.25,194.22,3.83071668]
[1761345262040,35.76,194.23,194.17,5.85004668]
[1761345262234,35.76,194.23,194.2,2.55019257]
[1761345262538,36.42,194.22,194.21,3.8310489]
[1761345262746,35.76,194.23,194.22,7.69899289]
[1761345262930,35.76,194.24,194.22,11.53004179]
[1761345263133,0.66,194.23,194.22,7.69899289]
[1761345263336,36.42,194.23,194.22,11.528176]
[1761345264838,36.42,194.23,194.22,10.60753193]
[1761345265527,36.42,194.23,194.22,8.97798343]
[1761345266732,36.42,194.23,194.16,15.46351898]
[1761345266733,36.42,194.23,194.16,12.8754359]
[1761345266943,0.66,194.22,194.17,5.45785146]
[1761345267138,0.66,194.22,194.18,5.45785146]
[1761345267343,35.78,194.21,194.19,5.45785146]
[1761345267538,35.78,194.21,194.19,1.6295485]
[1761345267742,35.78,194.21,194.19,6.77898099]
[1761345267947,35.78,194.21,194.19,5.14943249]
[1761345267948,0.66,194.2,194.19,5.14943249]
[1761345268140,0.66,194.2,194.19,8.97794486]
[1761345268831,0.66,194.22,194.19,10.60749336]
[1761345269036,0.66,194.24,194.2,5.45727121]
[1761345269240,35.78,194.23,194.2,1.6295485]
[1761345269438,0.66,194.24,194.2,1.6295485]
[1761345269644,36.44,194.24,194.21,5.45660433]
[1761345269950,36.44,194.24,194.22,3.82705583]
[1761345270136,0.66,194.23,194.21,1.6295485]
[1761345270339,0.66,194.23,194.22,3.82596776]
[1761345271349,0.66,194.23,194.22,8.97476808]
[1761345272148,5.34723455,194.28,194.22,8.97476808]
[1761345272445,36.44,194.27,194.23,3.82449814]
[1761345272647,0.66,194.26,194.22,5.14880032]
[1761345272952,0.66,194.26,194.23,3.82462704]
[1761345273153,0.66,194.26,194.22,5.14880032]
[1761345275352,0.66,194.26,194.22,1.6295485]
[1761345276334,0.66,194.26,194.23,5.14853524]
[1761345280553,0.66,194.26,194.22,5.14877915]
[1761345281840,0.66,194.26,194.21,5.14906544]
[1761345282040,1.6295485,194.25,194.19,5.14959575]
[1761345282241,0.66,194.26,194.19,5.14959575]
[1761345282242,2.2895485,194.24,194.2,3.82256234]
[1761345282465,35.76,194.23,194.19,5.14959575]
[1761345282765,36.42,194.23,194.2,3.82365342]
[1761345282959,0.66,194.22,194.19,5.14959575]
[1761345283160,0.66,194.22,194.2,8.9727651]
[1761345283370,0.66,194.22,194.2,5.14910947]
[1761345284563,35.76,194.21,194.19,5.14959575]
[1761345284746,35.76,194.21,194.2,3.82456032]
[1761345285147,35.76,194.21,194.2,3.8245581]
[1761345285771,36.42,194.21,194.2,8.97388868]
[1761345286970,35.76,194.21,194.2,8.97388868]
[1761345287868,35.76,194.21,194.2,10.60343718]
[1761345288372,36.4,194.22,194.2,10.60343718]
[1761345288671,36.4,194.22,194.2,6.77887908]
[1761345291956,36.4,194.22,194.21,8.97596499]
[1761345293077,35.74,194.22,194.21,8.97596499]
[1761345293670,36.42,194.22,194.21,8.97596499]
[1761345293974,0.68,194.26,194.21,11.31551349]
[1761345294178,35.74,194.25,194.22,1.6295485]
[1761345294584,36.42,194.25,194.22,1.6295485]
[1761345294963,36.42,194.25,194.23,1.6295485]
[1761345295183,36.42,194.25,194.23,6.77806554]
[1761345299583,36.45,194.25,194.23,6.77806554]
[1761345300084,36.45,194.25,194.23,5.14851704]
[1761345300764,0.71,194.24,194.19,12.87394179]
[1761345300996,0.71,194.24,194.2,3.83178411]
[1761345301289,0.71,194.24,194.21,3.83178411]
[1761345301467,0.71,194.24,194.22,3.83178411]
[1761345301670,0.71,194.24,194.2,5.14933058]
[1761345301973,0.71,194.24,194.21,3.83401165]
[1761345302168,0.2,194.28,194.21,3.83401165]
[1761345302169,0.2,194.28,194.22,24.5095485]
[1761345302375,0.71,194.27,194.23,3.83508018]
[1761345302571,0.71,194.27,194.22,22.88]
[1761345302572,33.32,194.26,194.22,22.88]
[1761345302775,33.32,194.26,194.23,3.83360244]
[1761345302976,34.03,194.26,194.24,3.83360244]
[1761345303193,34.03,194.26,194.23,24.5095485]
[1761345303365,34.03,194.26,194.24,3.83502028]
[1761345303566,0.2,194.28,194.25,8.98302542]
[1761345303766,0.2,194.28,194.25,7.44755364]
[1761345303968,35.9,194.27,194.25,7.44755364]
[1761345304365,0.2,194.28,194.25,5.14800514]
[1761345304569,0.71,194.27,194.25,6.77755364]
[1761345309301,0.71,194.27,194.25,5.14800514]
[1761345310283,0.71,194.27,194.24,5.14827018]
[1761345310480,0.71,194.27,194.25,3.83536782]
[1761345310777,0.71,194.27,194.24,5.81827018]
[1761345310982,0.71,194.27,194.25,3.83536757]
[1761345311184,0.71,194.27,194.24,5.81827018]
[1761345311390,0.71,194.27,194.25,8.98321335]
[1761345311574,0.71,194.27,194.25,5.14794739]
[1761345312175,0.2,194.28,194.25,5.81794739]
[1761345312375,35.88,194.27,194.25,5.81794739]
[1761345312576,35.88,194.27,194.26,3.8349447]
[1761345313403,35.88,194.27,194.26,8.98268484]
[1761345313702,0.91,194.28,194.26,5.14774014]
[1761345313893,35.88,194.27,194.24,5.14827018]
[1761345314096,36.59,194.27,194.24,5.14827018]
[1761345314286,0.71,194.26,194.24,5.14827018]
[1761345323910,35.84,194.25,194.24,5.14827018]
[1761345324107,35.84,194.25,194.24,8.98426003]
[1761345325001,36.5,194.25,194.24,8.98426003]
[1761345325313,35.84,194.25,194.24,8.98426003]
[1761345327311,35.84,194.25,194.22,5.14870981]
[1761345327312,36.5,194.25,194.22,5.14870981]
[1761345327504,36.5,194.25,194.18,5.14986095]
[1761345327505,3.20592365,194.24,194.18,5.14986095]
[1761345327700,2.54592365,194.22,194.19,3.83819122]
[1761345327898,35.84,194.21,194.18,5.14986095]
[1761345328109,36.5,194.21,194.19,3.83903276]
[1761345328292,0.66,194.2,194.18,5.14986095]
[1761345328491,0.66,194.2,194.19,3.83851436]
[1761345328901,0.66,194.2,194.12,4.31300075]
[1761345328902,3.20592365,194.2,194.12,4.31300075]
[1761345329106,2.54592365,194.17,194.13,3.83986168]
[1761345329310,35.86,194.16,194.13,22.88]
[1761345329503,36.52,194.16,194.12,23.57]
[1761345330019,36.52,194.16,194.14,5.15092201]
[1761345332010,0.66,194.15,194.12,5.1514527]
[1761345334698,3.20592365,194.15,194.1,5.15198351]
[1761345335107,0.66,194.14,194.1,5.15198351]
[1761345335313,3.20592365,194.14,194.09,22.88]
[1761345335700,0.66,194.13,194.09,28.03217105]
[1761345335895,35.86,194.12,194.09,28.03217105]
[1761345336302,36.52,194.12,194.09,28.72217105]
[1761345341519,36.52,194.12,194.09,28.03217105]
[1761345341722,36.52,194.12,194.09,28.72217105]
[1761345342412,36.52,194.12,194.09,28.03217105]
[1761345342611,36.52,194.12,194.09,28.72217105]
[1761345345522,36.52,194.12,194.09,28.03217105]
[1761345345731,36.52,194.12,194.09,28.72217105]
[1761345348304,35.86,194.12,194.1,0.69]
[1761345348509,35.82,194.12,194.1,3.23592365]
[1761345348830,35.82,194.12,194.1,0.69]
[1761345349406,35.82,194.12,194.11,5.15171809]
[1761345350125,35.82,194.12,194.11,5.85171809]
[1761345352920,35.82,194.12,194.1,7.69790716]
[1761345353119,35.82,194.12,194.1,8.39790716]
[1761345353317,35.82,194.12,194.11,0.7]
[1761345353520,0.7,194.16,194.11,0.7]
[1761345353721,35.82,194.13,194.11,0.7]
[1761345355310,35.82,194.13,194.11,5.8514735]
[1761345358634,35.82,194.13,194.11,5.1514735]
[1761345359130,0.66,194.14,194.11,5.1514735]
[1761345359437,35.8,194.13,194.11,5.1514735]
[1761345359619,35.8,194.13,194.11,5.8214735]
[1761345361931,0.66,194.15,194.11,5.8214735]
[1761345362133,0.66,194.15,194.1,2.54592365]
[1761345362134,35.78,194.14,194.12,5.82129176]
[1761345362320,35.78,194.14,194.12,5.15129176]
[1761345362728,36.44,194.14,194.12,5.15129176]
[1761345364042,0.66,194.14,194.12,5.15129176]
[1761345364242,35.78,194.13,194.09,36.43062239]
[1761345364422,35.78,194.13,194.09,38.97654604]
[1761345364621,36.44,194.13,194.09,38.97654604]
[1761345364945,36.44,194.13,194.1,0.67]
[1761345365433,36.44,194.13,194.1,5.82198351]
[1761345368446,36.44,194.13,194.1,8.36790716]
[1761345370940,0.66,194.13,194.1,5.82198351]
[1761345371151,35.78,194.12,194.1,8.36790716]
[1761345373338,35.78,194.12,194.1,5.82198351]
[1761345377854,7.69608683,194.17,194.1,5.82198351]
[1761345378039,0.66,194.15,194.11,0.67]
[1761345378542,0.66,194.15,194.1,33.50263821]
[1761345378751,0.66,194.15,194.1,34.17263821]
[1761345378952,0.66,194.15,194.1,18.70194229]
[1761345379144,0.66,194.15,194.1,18.03194229]
[1761345379645,0.66,194.15,194.1,18.74194229]
[1761345380561,0.66,194.15,194.12,5.1514527]
[1761345383264,35.76,194.14,194.12,5.1514527]
[1761345385063,36.45,194.14,194.12,5.1514527]